[Event "XVII Profigaia Open 2017"]
[Site "Gaia"]
[Date "2017.06.15"]
[Round "2"]
[White "Camelo, Joao"]
[Black "Silva, Ana Ines Teixeira D"]
[Result "1-0"]
[ECO "B17"]
[WhiteElo "1300"]
[BlackElo "1775"]
[Annotator "NA"]
[PlyCount "101"]
[EventDate "2017.??.??"]
[EventType "swiss"]
[EventCountry "POR"]
[SourceTitle "playchess.com"]
[Source "ChessBase"]
[SourceQuality "1"]
[TimeControl "5400+30"]

1. e4 {[%emt 0:00:00]} c6 {[%emt 0:00:08]} 2. d4 {[%emt 0:00:00]} d5 {[%emt 0:00:04]} 3. Nc3 {[%emt 0:00:13]} dxe4 {[%emt 0:00:18]} 4. Nxe4 {[%emt 0:00:10]} Nd7 {[%emt 0:00:03]} 5. Nf3 {[%emt 0:01:08]} Ngf6 {[%emt 0:00:07]} 6. Nxf6+ {[%emt 0:03:54]} Nxf6 {[%emt 0:00:17]} 7. Bd3 {[%emt 0:02:52]} Bg4 {[%emt 0:01:32]} 8. c3 {[%emt 0:00:43]} e6 {[%emt 0:01:40]} 9. Bf4 {[%emt 0:01:37]} Bd6 {[%emt 0:02:33]} 10. Bxd6 {[%emt 0:03:35]} Qxd6 {[%emt 0:00:10]} 11. O-O {[%emt 0:00:16]} O-O {[%emt 0:01:59]} 12. h3 {[%emt 0:01:07]} Bh5 {[%emt 0:01:17]} 13. Re1 {[%emt 0:04:04]} Rfd8 {[%emt 0:04:50]} 14. g4 {[%emt 0:14:26]} Bg6 {[%emt 0:03:58]} 15. Bxg6 {[%emt 0:01:43]} hxg6 {[%emt 0:00:11]} 16. Qd2 {[%emt 0:01:01]} c5 {[%emt 0:18:33]} 17. Rad1 {[%emt 0:03:58]} Qd5 {[%emt 0:03:27]} 18. Qe2 {[%emt 0:05:00]} Qxa2 {[%emt 0:16:20]} 19. dxc5 {[%emt 0:02:51]} Qa5 {[%emt 0:05:09]} 20. Qc4 {[%emt 0:08:28]} Qc7 {[%emt 0:04:36]} 21. Rd4 {[%emt 0:04:50]} Rd5 {[%emt 0:07:34]} 22. Red1 {[%emt 0:06:19]} Rxc5 {[%emt 0:04:19]} 23. Qb3 {[%emt 0:04:16]} Rd5 {[%emt 0:08:30]} 24. c4 {[%emt 0:06:40]} Rxd4 {[%emt 0:01:29]} 25. Rxd4 {[%emt 0:02:10]} b6 {[%emt 0:05:59]} 26. Qe3 {[%emt 0:06:43]} Nd7 {[%emt 0:04:53]} 27. Ng5 {[%emt 0:02:21]} Re8 {[%emt 0:01:15]} 28. Qf3 {[%emt 0:01:09]} Nf6 {[%emt 0:00:40]} 29. b3 {[%emt 0:00:58]} e5 {[%emt 0:01:32]} 30. Rd2 {[%emt 0:02:02]} e4 {[%emt 0:01:12]} 31. Qe3 {[%emt 0:00:56]} Qe5 {[%emt 0:00:33]} 32. f3 {[%emt 0:02:52]} Qa1+ {[%emt 0:00:37]} 33. Kg2 {[%emt 0:00:33]} exf3+ {[%emt 0:00:13]} 34. Qxf3 {[%emt 0:00:01]} Qe1 {[%emt 0:00:43]} 35. Rf2 {[%emt 0:02:01]} Qe5 {[%emt 0:00:36]} 36. h4 {[%emt 0:01:23]} Qe3 {[%emt 0:00:26]} 37. Qb7 {[%emt 0:01:14]} Qe7 {[%emt 0:00:30]} 38. Qf3 {[%emt 0:00:19]} Ne4 {[%emt 0:00:41]} 39. Re2 {[%emt 0:00:50]} f5 {[%emt 0:00:29]} 40. gxf5 {[%emt 0:00:25]} Nxg5 {[%emt 0:00:30]} 41. Rxe7 {[%emt 0:02:16]} Nxf3 {[%emt 0:00:08]} 42. Rxe8+ {[%emt 0:00:44]} Kf7 {[%emt 0:00:05]} 43. fxg6+ {[%emt 0:00:20]} Kxe8 {[%emt 0:00:16]} 44. Kxf3 {[%emt 0:00:02]} Ke7 {[%emt 0:00:22]} 45. Ke4 {[%emt 0:00:36]} Kf6 {[%emt 0:00:19]} 46. b4 {[%emt 0:00:36]} a5 {[%emt 0:01:19]} 47. c5 {[%emt 0:00:37]} a4 {[%emt 0:00:29]} 48. cxb6 {[%emt 0:00:17]} a3 {[%emt 0:00:05]} 49. b7 {[%emt 0:00:20]} a2 {[%emt 0:00:06]} 50. b8=Q {[%emt 0:00:14]} a1=Q {[%emt 0:00:10]} 51. Qd6# {[%emt 0:00:32]} 1-0

[Event "XVII Profigaia Open 2017"]
[Site "Gaia"]
[Date "2017.06.15"]
[Round "3"]
[White "Margarido, Jose Miguel Teixeir"]
[Black "Camelo, Joao"]
[Result "1-0"]
[ECO "B30"]
[WhiteElo "2038"]
[BlackElo "1300"]
[Annotator "NA RC"]
[PlyCount "49"]
[EventDate "2017.??.??"]
[EventType "swiss"]
[EventCountry "POR"]
[SourceTitle "playchess.com"]
[Source "ChessBase"]
[SourceQuality "1"]
[TimeControl "5400+30"]

{[%evp 14,48,23,-14,32767,32767,32767,-12,-5,-7,52,32767,16,0,8,-19,77,76,106,97,111,0,144,23,148,107,117,87,424,434,419,445,1164,1306,32767,32767,29999]} 1. e4 {[%emt 0:01:27]} c5 {[%emt 0:00:11]} 2. Nf3 {[%emt 0:00:10]} Nc6 {[%emt 0:00:17]} 3. b3 {[%emt 0:02:34]} d6 {[%emt 0:01:17]} 4. Bb5 {[%emt 0:01:27]} Bd7 {[%emt 0:00:54]} 5. O-O {[%emt 0:00:51] B50: Sicilian: 2...d6, Miscellaneous} Nf6 {[%emt 0:00:27]} 6. Re1 {[%emt 0:00:30]} g6 {[%emt 0:00:34]} 7. Bb2 {[%emt 0:00:26]} Bg7 {[%emt 0:00:17]} 8. h3 $146 {[%emt 0:00:35]} ({Predecessor:} 8. d4 cxd4 9. Nxd4 O-O 10. Bxc6 bxc6 11. c4 c5 12. Nc2 a5 13. a4 Qb8 {0-1 (64) Gergacz,A (2417)-Groszpeter,A (2530) Zalakaros 2010}) 8... O-O {[%emt 0:00:28]} 9. Bf1 {[%emt 0:01:03]} Qc7 {[%emt 0:03:28]} 10. c3 {[%emt 0:07:20]} Rad8 {[%emt 0:03:31]} 11. d3 {[%emt 0:03:04]} Be8 {[%emt 0:02:13]} (11... e5 $11) 12. c4 {[%emt 0:03:39]} Nh5 {[%emt 0:02:44]} 13. Bxg7 {[%emt 0:01:57]} Nxg7 {[%emt 0:00:02]} 14. d4 {[%emt 0:00:13]} a6 {[%emt 0:00:33]} (14... cxd4 $11 {keeps the balance.} 15. Nxd4 Ne6) 15. d5 {[%emt 0:04:45]} Nb8 {[%emt 0:02:59]} 16. Nc3 {[%emt 0:01:02]} e6 {[%emt 0:03:48]} 17. dxe6 {[%emt 0:06:08]} ({White should try} 17. Qd2 $16) 17... Nxe6 {[%emt 0:02:35]} (17... fxe6 $11 18. Qc1 Nc6) 18. Qd2 {[%emt 0:02:16]} (18. Nd5 $16 Qa5 19. a3) 18... Kg7 {[%emt 0:01:27]} (18... f6 $11 {keeps the balance.}) 19. Nd5 {[%emt 0:03:19]} Qd7 {[%emt 0:03:25]} 20. e5 {[%emt 0:10:55]} dxe5 $2 {[%emt 0:03:00]} (20... Nc6 $1 $14) 21. Nxe5 {[%emt 0:00:29]} Qd6 {[%emt 0:00:25]} 22. Ng4 {[%emt 0:00:56]} f5 $18 {[%emt 0:06:35] [#]} (22... Qf4 $142 23. Qxf4 (23. Nxf4 Rxd2 24. Rxe6 h5 $16) 23... Nxf4 24. Nxf4 Nc6) 23. Rxe6 $1 {[%emt 0:09:33]} Qxe6 {[%emt 0:04:47]} 24. Qc3+ {[%emt 0:00:14]} Kg8 {[%emt 0:00:14]} 25. Nh6# 1-0

[Event "XVII Profigaia Open 2017"]
[Site "Gaia"]
[Date "2017.06.15"]
[Round "3"]
[White "De Souza Monteiro, Marcos Paulo"]
[Black "Fernandes, Tiago Joao Carneiro"]
[Result "1-0"]
[ECO "C68"]
[WhiteElo "1961"]
[BlackElo "1182"]
[Annotator "NA RC"]
[PlyCount "137"]
[EventDate "2017.??.??"]
[EventType "swiss"]
[EventCountry "POR"]
[SourceTitle "playchess.com"]
[Source "ChessBase"]
[SourceQuality "1"]
[TimeControl "5400+30"]

{[%evp 17,136,0,32767,32767,32767,32767,-44,-52,-57,32767,-60,-79,-70,-61,-77,-108,32767,32767,-57,-73,-59,-50,-19,-18,-20,-9,63,71,76,-13,-22,-21,2,-2,32767,32767,32767,32767,32767,32767,32767,32767,32767,32767,32767,32767,32767,184,298,328,464,478,660,626,664,675,713,790,714,805,860,774,725,780,838,32767,32767,32767,32767,32767,32767,32767,32767,32767,32767,32767,32767,32767,32767,32767,32767,32767,32767,32767,32767,32767,32767,32767,32767,32767,32767,32767,32767,32767,5720,29979,5902,29979,12841,12846,12846,32767,32767,32767,32767,12848,29990,12850,12850,29992,29994,29993,29993,29994,29995,29994,29996,29997,29998,29999,29999]} 1. e4 e5 2. Nf3 {[%emt 0:00:00]} Nc6 {[%emt 0:00:12]} 3. Bb5 {[%emt 0:00:00]} a6 {[%emt 0:00:09]} 4. Bxc6 {[%emt 0:00:00]} dxc6 {[%emt 0:00:10]} 5. Nc3 {[%emt 0:00:03]} Nf6 {[%emt 0:02:41]} 6. O-O {[%emt 0:01:05]} Bg4 {[%emt 0:00:16] C48: Four Knights: 4 Bb5, replies other than 4...Bb4} 7. h3 {[%emt 0:00:17]} Bh5 {[%emt 0:00:08]} 8. Re1 {[%emt 0:03:49]} (8. g4 Nxg4 9. hxg4 Bxg4 10. Kg2 Qf6 11. d3 h5 12. Rh1 h4 13. Rh3 g5 14. Qh1 Rg8 15. Ne1 Bxh3+ 16. Qxh3 g4 17. Qh1 h3+ 18. Kg3 Bc5 19. Be3 Rh8 {0-1 (19) Leveille,F (2360)-Sagalchik,G (2515) Montreal 1995}) 8... Bc5 {[%emt 0:01:23]} 9. d3 {[%emt 0:01:31]} Qd7 $146 {[%emt 0:03:13]} ({Predecessor:} 9... h6 10. g4 Bxg4 11. hxg4 Nxg4 12. Be3 Nxe3 13. fxe3 Qf6 14. Qe2 {1-0 (37) Moncayo Romero,E (2163)-Arosemena,B (1657) Istanbul 2012}) 10. g4 {[%emt 0:05:24]} Nxg4 {[%emt 0:00:59]} 11. Nxe5 {[%emt 0:02:18]} Nxe5 $2 {[%emt 0:02:23]} (11... Bxf2+ $19 12. Kg2 Nxe5 13. Qxh5 Bxe1 14. Qxe5+ Qe6 15. Qxc7 Qg6+ 16. Kh2 Qh5) 12. Qxh5 {[%emt 0:00:12]} Qe6 {[%emt 0:01:48]} 13. Bf4 {[%emt 0:11:36]} Bd4 {[%emt 0:01:45]} 14. Bxe5 {[%emt 0:00:24]} Bxe5 {[%emt 0:00:14]} 15. Qf5 {[%emt 0:00:17]} Qd6 {[%emt 0:01:47]} (15... O-O-O $5) 16. Kg2 {[%emt 0:14:15]} ({Better is} 16. Ne2 $15) 16... g6 {[%emt 0:01:03]} 17. Qg5 {[%emt 0:04:04]} h6 {[%emt 0:03:41]} 18. Qg4 {[%emt 0:01:12]} h5 {[%emt 0:00:34]} 19. Qg5 {[%emt 0:00:20]} Bf6 {[%emt 0:01:18]} 20. e5 {[%emt 0:03:31]} Bxg5 {[%emt 0:04:44]} 21. exd6+ {[%emt 0:00:09]} Kd7 {[%emt 0:00:37]} ({Black should try} 21... Kd8 $11) 22. Ne4 {[%emt 0:04:05]} Bh6 {[%emt 0:02:12]} 23. dxc7 {[%emt 0:02:06]} (23. Nc5+ $16 Kxd6 24. Nxb7+ Kd7 25. Nc5+ Kd6 26. Ne4+ Ke7 27. Kf3) 23... Kxc7 {[%emt 0:03:07]} 24. h4 {[%emt 0:01:05]} Bg7 {[%emt 0:02:04]} 25. c3 {[%emt 0:00:18]} a5 {[%emt 0:00:34]} 26. Ng5 {[%emt 0:00:24]} f6 {[%emt 0:00:39]} 27. Re7+ {[%emt 0:00:09]} Kb6 {[%emt 0:00:38]} 28. Rxg7 {[%emt 0:00:09]} fxg5 {[%emt 0:00:47]} 29. hxg5 {[%emt 0:01:32]} h4 {[%emt 0:02:21]} 30. Rxg6 {[%emt 0:01:18]} Rad8 {[%emt 0:01:04]} 31. d4 {[%emt 0:02:27]} Rde8 {[%emt 0:00:44]} 32. Kf3 {[%emt 0:04:36]} (32. Rf6 $142) 32... h3 {[%emt 0:01:11]} (32... Rhf8+ $142 33. Rf6 Rxf6+ 34. gxf6 Rf8) 33. Rh1 {[%emt 0:00:52]} h2 {[%emt 0:10:58]} (33... Rhf8+ {keeps fighting.} 34. Kg3 Re2) 34. Rh6 {[%emt 0:01:33]} Ref8+ {[%emt 0:00:30]} 35. Kg3 {[%emt 0:01:53]} Rhg8 {[%emt 0:01:14]} 36. f4 {[%emt 0:01:33]} Re8 {[%emt 0:01:21]} 37. R1xh2 {[%emt 0:00:16]} Re3+ {[%emt 0:00:14]} 38. Kg4 {[%emt 0:00:38]} Re1 {[%emt 0:03:03]} 39. R6h3 {[%emt 0:04:13]} Rf8 {[%emt 0:00:27]} 40. g6 {[%emt 0:00:45]} Rg8 {[%emt 0:00:42]} 41. f5 {[%emt 0:00:29]} Re4+ {[%emt 0:00:28]} 42. Kg5 {[%emt 0:00:37]} Re1 {[%emt 0:00:15]} 43. Rh4 {[%emt 0:01:05]} Kc7 {[%emt 0:00:39]} 44. f6 {[%emt 0:00:14]} Rg1+ {[%emt 0:01:09]} 45. Rg4 {[%emt 0:01:11]} Rxg4+ {[%emt 0:00:28]} 46. Kxg4 {[%emt 0:00:06]} Rxg6+ {[%emt 0:00:18]} 47. Kf5 {[%emt 0:00:07]} Rg1 {[%emt 0:02:43]} 48. f7 {[%emt 0:02:43]} Rf1+ {[%emt 0:00:25]} 49. Kg6 {[%emt 0:00:05]} Rg1+ {[%emt 0:00:31]} 50. Kh7 {[%emt 0:00:10]} Rf1 {[%emt 0:00:42]} 51. Kg8 {[%emt 0:00:07]} Rg1+ {[%emt 0:00:24]} 52. Kh8 {[%emt 0:00:11]} Rf1 {[%emt 0:00:10]} 53. Rh7 {[%emt 0:00:14]} Kd6 {[%emt 0:02:08]} 54. Kg8 {[%emt 0:00:29]} Rg1+ {[%emt 0:01:04]} 55. Rg7 {[%emt 0:00:20]} Rf1 {[%emt 0:01:25]} 56. f8=Q+ {[%emt 0:00:15]} Rxf8+ {[%emt 0:00:29]} 57. Kxf8 {[%emt 0:00:09]} b5 {[%emt 0:01:26]} 58. Rg5 {[%emt 0:00:07]} Ke6 {[%emt 0:00:24]} 59. Re5+ {[%emt 0:00:12]} Kd6 {[%emt 0:00:22]} 60. Kf7 {[%emt 0:00:07]} b4 {[%emt 0:04:08]} 61. Rxa5 {[%emt 0:00:07]} bxc3 {[%emt 0:00:20]} 62. bxc3 {[%emt 0:00:07]} c5 {[%emt 0:00:31]} 63. Rxc5 {[%emt 0:00:13]} Kd7 {[%emt 0:00:07]} 64. Rd5+ {[%emt 0:00:11]} Kc6 {[%emt 0:00:20]} 65. Ke6 {[%emt 0:00:08]} Kc7 {[%emt 0:00:03]} 66. Rd6 {[%emt 0:00:09]} Kb7 {[%emt 0:00:36]} 67. Kd7 {[%emt 0:00:08]} Ka7 {[%emt 0:00:47]} 68. Kc7 {[%emt 0:00:15]} Ka8 {[%emt 0:00:09]} 69. Ra6# {[%emt 0:00:07]} 1-0

[Event "XVII Profigaia Open 2017"]
[Site "Gaia"]
[Date "2017.06.15"]
[Round "3"]
[White "De Sousa Da Silva, Armando"]
[Black "Silva, Pedro Gil Ferreira "]
[Result "1-0"]
[ECO "A28"]
[WhiteElo "1926"]
[BlackElo "1592"]
[Annotator "NA RC"]
[PlyCount "95"]
[EventDate "2017.??.??"]
[EventType "swiss"]
[EventCountry "POR"]
[SourceTitle "playchess.com"]
[Source "ChessBase"]
[SourceQuality "1"]
[TimeControl "5400+30"]

{[%evp 10,95,57,45,60,46,60,40,37,47,44,32767,53,46,43,25,36,49,110,106,32767,167,32767,213,207,149,158,125,169,32767,32767,32767,32767,32767,32767,32767,150,240,283,306,322,297,345,306,286,302,330,293,311,322,360,401,545,433,620,415,434,430,518,518,563,440,566,414,550,719,576,855,606,606,565,566,697,551,575,579,1611,2183,2122,2143,2723,5464,2394,29978,1712,29984,29989,29989]} 1. c4 {[%emt 0:00:00]} e5 {[%emt 0:01:46]} 2. Nc3 {[%emt 0:00:00]} Nf6 {[%emt 0:00:44]} 3. Nf3 {[%emt 0:00:11]} Nc6 {[%emt 0:10:11]} 4. e3 {[%emt 0:01:07]} d6 {[%emt 0:02:47]} 5. d4 {[%emt 0:06:16]} Bg4 {[%emt 0:10:02]} 6. d5 {[%emt 0:07:02] LiveBook: 7 Games} Nb8 {[%emt 0:01:16] A28: English Opening: Four Knights Variation} 7. e4 {[%emt 0:02:10]} (7. Be2 Be7 8. Qb3 Qc8 9. h3 Bh5 10. e4 O-O 11. Be3 Nbd7 12. g4 Bg6 13. Nd2 c6 14. h4 {0-1 (43) Vaisser,A (2573)-Zarnicki,P (2513) playchess.com INT 2004}) 7... Nbd7 {[%emt 0:00:24]} 8. Bd3 {[%emt 0:04:20]} Nc5 {[%emt 0:05:31]} 9. Bc2 {[%emt 0:06:19]} a5 {[%emt 0:00:31]} 10. Be3 {[%emt 0:01:03]} Nfd7 {[%emt 0:04:43]} 11. h3 {[%emt 0:00:36]} Bh5 {[%emt 0:01:28]} 12. g4 {[%emt 0:06:22]} Bg6 {[%emt 0:01:37]} 13. Qe2 $146 {[%emt 0:03:54]} ({Predecessor:} 13. h4 h6 14. Qe2 {1-0 (67) Bernal Moro,L (2435)-Sanchez Dengra,B (1869) La Massana 2015}) 13... Na6 {[%emt 0:05:05]} 14. Ba4 {[%emt 0:02:36]} h6 {[%emt 0:04:56]} 15. c5 {[%emt 0:06:56]} Rb8 {[%emt 0:10:38]} 16. a3 {[%emt 0:08:21]} Be7 {[%emt 0:01:48]} 17. Qb5 {[%emt 0:00:07]} Qc8 {[%emt 0:07:17]} 18. O-O-O {[%emt 0:03:15]} ({Stronger than} 18. Qxa5 c6 $15) 18... b6 {[%emt 0:06:01]} 19. cxb6 {[%emt 0:15:22]} cxb6 {[%emt 0:00:12]} 20. Nd2 {[%emt 0:04:04]} Bd8 {[%emt 0:03:00]} 21. Kb1 {[%emt 0:00:58]} Ke7 {[%emt 0:01:40]} 22. Rc1 {[%emt 0:01:32]} Qb7 {[%emt 0:02:23]} 23. Qe2 {[%emt 0:01:50]} Nac5 {[%emt 0:00:25]} 24. Bc6 {[%emt 0:00:37]} Qa6 {[%emt 0:04:18]} 25. Bb5 {[%emt 0:00:05]} Qa7 {[%emt 0:00:09]} 26. h4 {[%emt 0:03:26]} Nf6 {[%emt 0:07:59]} 27. f3 {[%emt 0:00:27]} Kf8 {[%emt 0:00:24]} 28. Ka2 {[%emt 0:01:39]} Qe7 {[%emt 0:01:00]} 29. h5 {[%emt 0:00:33]} Bh7 {[%emt 0:01:31]} 30. Bc6 {[%emt 0:03:18]} Nfd7 {[%emt 0:00:56]} 31. Nb5 {[%emt 0:00:31]} Qf6 {[%emt 0:00:54]} (31... a4 $142 32. Nc4 Nb3) 32. g5 {[%emt 0:01:16]} hxg5 {[%emt 0:00:13]} 33. Rcg1 {[%emt 0:00:27]} Qh6 {[%emt 0:00:09]} 34. Nc4 {[%emt 0:00:48]} Be7 {[%emt 0:00:36]} 35. Qg2 {[%emt 0:02:01]} f6 {[%emt 0:01:40]} 36. Qg4 {[%emt 0:01:25]} Rd8 {[%emt 0:01:18]} 37. Nbxd6 {[%emt 0:02:00]} Bxd6 {[%emt 0:00:09]} 38. Nxd6 {[%emt 0:00:15]} Nb8 {[%emt 0:00:24]} 39. Bxc5 {[%emt 0:02:17]} bxc5 {[%emt 0:00:07]} 40. Nb7 {[%emt 0:00:49]} ({Inferior is} 40. Qe6 Bg8 $11) 40... Nxc6 {[%emt 0:01:10]} 41. dxc6 {[%emt 0:00:18]} Re8 {[%emt 0:00:26]} 42. c7 {[%emt 0:02:01]} Bg8+ {[%emt 0:00:07]} 43. Ka1 {[%emt 0:00:21]} Be6 {[%emt 0:00:07] [#]} 44. Qxe6 $1 {[%emt 0:00:22]} Rxe6 {[%emt 0:00:50]} 45. c8=Q+ {[%emt 0:00:09]} Re8 {[%emt 0:00:33]} 46. Qxc5+ {[%emt 0:00:30]} Kg8 {[%emt 0:00:51]} 47. Nd6 {[%emt 0:00:48]} Re7 {[%emt 0:00:31]} 48. Nf5 {[%emt 0:00:29]} 1-0

[Event "XVII Profigaia Open 2017"]
[Site "Gaia"]
[Date "2017.06.15"]
[Round "3"]
[White "Moura, Paulo Jorge Alves B"]
[Black "Moreira, Rafael Mota"]
[Result "1/2-1/2"]
[ECO "A05"]
[WhiteElo "1913"]
[BlackElo "1478"]
[Annotator "NA RC"]
[PlyCount "76"]
[EventDate "2017.??.??"]
[EventType "swiss"]
[EventCountry "POR"]
[SourceTitle "playchess.com"]
[Source "ChessBase"]
[SourceQuality "1"]
[TimeControl "5400+30"]

{[%evp 9,76,41,32767,32767,32767,32767,32767,32767,32767,8,8,0,0,-32,-15,-32,-26,-31,-23,-18,-23,-36,8,0,18,19,13,0,0,32767,0,-7,0,-2,0,-33,0,0,9,3,14,0,2,0,32,15,19,10,9,12,54,63,66,32767,51,-80,32767,32767,32767,-34,-23,-235,32767,32767,32767,32767,-106,-166,0]} 1. Nf3 {[%emt 0:00:47]} Nf6 {[%emt 0:00:54]} 2. e3 {[%emt 0:00:40]} Nc6 {[%emt 0:00:52]} 3. c4 {[%emt 0:00:34]} d5 {[%emt 0:01:35]} 4. Nc3 {[%emt 0:00:48]} Bf5 {[%emt 0:03:31]} 5. cxd5 {[%emt 0:02:10]} Nxd5 {[%emt 0:00:30]} 6. Nxd5 {[%emt 0:01:30]} Qxd5 {[%emt 0:00:24]} 7. a3 {[%emt 0:01:19]} Bg4 {[%emt 0:01:53]} 8. Be2 {[%emt 0:00:56]} e6 {[%emt 0:02:02]} 9. O-O {[%emt 0:00:40]} Bd6 {[%emt 0:01:30]} 10. d4 {[%emt 0:03:28]} (10. h3 $5 {[%cal Rh3g4]} Bh5 11. d3 $11) 10... Qh5 {[%emt 0:02:10]} 11. g3 {[%emt 0:03:52]} e5 {[%emt 0:03:26]} 12. Re1 {[%emt 0:02:21]} exd4 {[%emt 0:02:26]} 13. Nxd4 {[%emt 0:02:32]} Bxe2 {[%emt 0:01:02]} 14. Qxe2 {[%emt 0:02:02]} Qxe2 {[%emt 0:00:15]} 15. Nxe2 {[%emt 0:01:19]} O-O {[%emt 0:00:55]} 16. b4 {[%emt 0:01:27]} Be5 {[%emt 0:02:38]} 17. Rb1 {[%emt 0:01:49]} Rfd8 {[%emt 0:02:37]} 18. f4 {[%emt 0:02:05]} Bf6 {[%emt 0:00:53]} 19. Bb2 {[%emt 0:02:32]} Bxb2 {[%emt 0:00:45]} 20. Rxb2 {[%emt 0:00:15]} Rd3 {[%emt 0:00:41]} 21. b5 {[%emt 0:02:42]} Ne7 {[%emt 0:03:41]} 22. Rc2 {[%emt 0:01:52]} Rc8 {[%emt 0:02:31]} 23. Rc3 {[%emt 0:01:03]} Rxc3 {[%emt 0:00:50]} 24. Nxc3 {[%emt 0:00:27]} Rd8 {[%emt 0:00:41]} 25. Rd1 {[%emt 0:02:00]} Rxd1+ {[%emt 0:00:19]} 26. Nxd1 {[%emt 0:00:47]} Nd5 {[%emt 0:00:12]} 27. e4 {[%emt 0:01:54]} Nb6 {[%emt 0:00:41]} 28. Nc3 {[%emt 0:00:27]} Nc4 {[%emt 0:01:08]} 29. a4 {[%emt 0:00:49]} Nb6 {[%emt 0:00:29]} 30. Kf2 {[%emt 0:00:27]} Kf8 {[%emt 0:01:00]} 31. e5 {[%emt 0:02:15]} Ke7 {[%emt 0:01:44]} 32. f5 {[%emt 0:03:34]} (32. Ke3 $14 {keeps the upper hand.}) 32... Nc4 {[%emt 0:04:48]} 33. Nd5+ {[%emt 0:03:35]} Kd7 {[%emt 0:01:38]} 34. e6+ $1 {[%emt 0:00:33]} fxe6 {[%emt 0:00:09]} 35. fxe6+ $2 {[%emt 0:00:26]} (35. f6 $1 $11 gxf6 36. Nxf6+ Ke7 37. Nxh7) 35... Kxe6 {[%emt 0:00:11]} 36. Nxc7+ {[%emt 0:00:44]} Kd7 {[%emt 0:00:13]} 37. Nd5 {[%emt 0:00:56] [#]} Nb2 {[%emt 0:04:09]} (37... Kd6 $1 $19 {[%cal Rd6d5]} 38. Nf4 Kc5) 38. Nc3 {[%emt 0:00:58]} (38. Ke3 $17) 38... Nd3+ $11 {[%emt 0:01:41]} (38... Kd6 $17 39. Ke3 Kc5) 1/2-1/2